Cogmind - Beta 16 @@@ ROGUE MODE // 2025.11.16 @ 01:48:16 // Winter2019/RPGLIKE Player: GFYguy Result: Destroyed by H-88 Terminator with KE Penetrator Performance ------------- Evolutions (9) 4500 Regions Visited (22) 4400 Robots Destroyed (243) 1215 Value Destroyed (10882) 10882 Prototype IDs (56) 1120 Alien Tech Used (3) 600 Bonus (3007) 3007 TOTAL SCORE: 25724 Bonus ------- High Alert Combat Kills 998 Follower Combat Kills 209 Met Zhirov 300 Met Warlord at Base 500 MAIN.C Attacked Warlord 500 Scanned by Researcher 500 Cogmind --------- Core Integrity 0/650 Matter 201/300 Energy 280/280 System Corruption 1% Temperature Cool (3) Movement Flying (10) Location -1/Access Parts ------- > --- POWER (3) -------- Improved Fusion Compressor Light Quantum Reactor Light Quantum Reactor > --- PROPULSION (8) --- Advanced Surge Thruster Advanced Surge Thruster Advanced Surge Thruster Advanced Surge Thruster Diametric Drive Diametric Drive Q-thruster Q-thruster > --- UTILITY (10) ----- Experimental Sensor Array Advanced Signal Interpreter Advanced Melee Analysis Suite Nanoactuators Advanced Actuator Array Advanced Force Booster Experimental Transmission Jammer Advanced Reaction Control System Advanced Phase Shifter Graphene Brace > --- WEAPON (5) ------- Power Sword Phasing Sabre Spear Enhanced Force Lance > --- INVENTORY (5) ---- Protomatter-66 Protomatter-52 Advanced EM Disruption Field Advanced Force Field Stasis Beam Peak State ------------ > --- POWER ------------ Improved Fusion Compressor Light Quantum Reactor Light Quantum Reactor > --- PROPULSION ------- Advanced Surge Thruster Advanced Surge Thruster Advanced Surge Thruster Diametric Drive Diametric Drive Q-thruster Q-thruster Q-thruster > --- UTILITY ---------- Experimental Sensor Array Advanced Signal Interpreter Advanced Melee Analysis Suite Nanoactuators Advanced Actuator Array Advanced Force Booster Experimental Transmission Jammer Advanced Reaction Control System Advanced Phase Shifter Graphene Brace > --- WEAPON ----------- Power Sword Phasing Sabre Spear Enhanced Force Lance > --- INVENTORY -------- Protomatter Protomatter Advanced EM Disruption Field Advanced Force Field Stasis Beam [Rating: 186] Favorites ----------- Power Light Fission Core Engine Hybrid Deuterium Engine Power Core Light Fission Core Reactor Light Antimatter Reactor Propulsion Cesium-ion Thruster Leg Advanced Myomer Leg Hover Unit Hover Unit Flight Unit Cesium-ion Thruster Utility Advanced Melee Analysis Suite Device Experimental Sensor Array Storage Advanced Energy Well Processor Advanced Melee Analysis Suite Hackware Hacking Suite Protection Hardened Light Armor Plating Weapon Spear Energy Gun Vortex Rifle Launcher Rocket Launcher Special Weapon Molecular Deconstructor Impact Weapon Powered Hammer Slashing Weapon Phasing Sabre Piercing Weapon Spear Special Melee Weapon Dirty Datajack Build | -11 -10 -10 -9 -9 -8 -7 -6 -6 -5 -5 -5 -5 -4 -4 -4 -4 -4 -3 -3 -3 -2 -1 ------- Run | Yrd Mat Min Mat Min Mat Fac Fac Ext Fac Upp Upp Zhi Pro Fac Upp Upp War Pro Res Qua Res Acc Slots Evolved 21 | . 1 . 8 1 . 3 2 1 1 . . . . 1 . . . . 1 1 1 . Power 2 | . . . 1 . . . 1 . . . . . . . . . . . . . . . Propulsion 7 | . . . 5 . . . . . . . . . . . . . . . . 1 1 . Utility 9 | . . . 2 1 . 2 . 1 1 . . . . 1 . . . . 1 . . . Weapon 3 | . 1 . . . . 1 1 . . . . . . . . . . . . . . . Parts Attached 119 | . 5 1 14 4 7 15 11 4 3 2 2 4 . 4 6 . 7 2 6 7 5 10 Power 26 | . . . 3 . 3 2 5 . 1 1 1 1 . . 3 . . . 2 2 . 2 Engine 10 | . . . 3 . 3 . 2 . 1 . . . . . . . . . . 1 . . Core 8 | . . . . . . 2 3 . . 1 . . . . 1 . . . . 1 . . Reactor 8 | . . . . . . . . . . . 1 1 . . 2 . . . 2 . . 2 Propulsion 35 | . . 1 7 . 2 7 . 1 1 . 1 1 . . 1 . 2 1 1 3 . 6 Treads . | . . . . . . . . . . . . . . . . . . . . . . . Leg 1 | . . . . . . . . . . . . 1 . . . . . . . . . . Wheel . | . . . . . . . . . . . . . . . . . . . . . . . Hover 1 | . . 1 . . . . . . . . . . . . . . . . . . . . Flight 33 | . . . 7 . 2 7 . 1 1 . 1 . . . 1 . 2 1 1 3 . 6 Utility 39 | . 2 . 3 3 2 4 2 2 1 . . 2 . 4 1 . 2 . 3 1 5 2 Device 26 | . 1 . . 3 1 4 1 . 1 . . . . 2 1 . 2 . 3 . 5 2 Storage 1 | . . . . . . . . . . . . 1 . . . . . . . . . . Processor 8 | . 1 . 1 . . . 1 2 . . . . . 2 . . . . . 1 . . Hackware 1 | . . . . . 1 . . . . . . . . . . . . . . . . . Protection 3 | . . . 2 . . . . . . . . 1 . . . . . . . . . . Artifact . | . . . . . . . . . . . . . . . . . . . . . . . Weapon 19 | . 3 . 1 1 . 2 4 1 . 1 . . . . 1 . 3 1 . 1 . . Energy Gun 1 | . . . . . . . . . . . . . . . . . 1 . . . . . Energy Cannon . | . . . . . . . . . . . . . . . . . . . . . . . Ballistic Gun . | . . . . . . . . . . . . . . . . . . . . . . . Ballistic Cannon . | . . . . . . . . . . . . . . . . . . . . . . . Launcher 3 | . 1 . . 1 . . 1 . . . . . . . . . . . . . . . Special Weapon 1 | . . . . . . . . . . . . . . . . . . 1 . . . . Impact Weapon 6 | . 2 . 1 . . 1 1 . . 1 . . . . . . . . . . . . Slashing Weapon 4 | . . . . . . . 1 1 . . . . . . 1 . 1 . . . . . Piercing Weapon 3 | . . . . . . 1 1 . . . . . . . . . . . . 1 . . Special Melee Weapon 1 | . . . . . . . . . . . . . . . . . 1 . . . . . Unidentified Prototypes 21 | . . . 1 2 . 2 2 . 1 . 1 6 . . . . 1 1 1 . 2 1 Parts Lost 5 | . . . 1 . . 1 . . 1 1 . . . . . . . . . . 1 . Power 1 | . . . . . . 1 . . . . . . . . . . . . . . . . Propulsion 3 | . . . 1 . . . . . 1 1 . . . . . . . . . . . . Utility 1 | . . . . . . . . . . . . . . . . . . . . . 1 . Weapon . | . . . . . . . . . . . . . . . . . . . . . . . Highest Loss Streak 1 | . . . 1 . . 1 . . 1 1 . . . . . . . . . . 1 . To Critical Strikes . | . . . . . . . . . . . . . . . . . . . . . . . Average Backups 1 | . . . 1 1 2 1 1 . 1 2 2 2 2 2 2 2 2 1 1 3 3 3 Power . | . . . . . . . . . . . . . . . . . . . . . 1 . Propulsion . | . . . . . . . . . . . . . . . . . . . . 1 . . Utility 1 | . . . 1 1 1 1 1 . . 1 1 1 1 1 1 1 1 . 1 1 1 1 Weapon . | . . . . . 1 . . . . 1 1 1 1 1 1 1 . . . . . . Tool/Special . | . . . . . . . . . . . . . . . . . . . . . . . Unused Backups 6 | . . . . . . . . . . . . 1 . . . 1 . . . . . 4 Power 1 | . . . . . . . . . . . . . . . . . . . . . . 1 Propulsion . | . . . . . . . . . . . . . . . . . . . . . . . Utility 3 | . . . . . . . . . . . . 1 . . . . . . . . . 2 Weapon 1 | . . . . . . . . . . . . . . . . 1 . . . . . . Tool/Special 1 | . . . . . . . . . . . . . . . . . . . . . . 1 Average Slot Usage (%) 90 | . 45 60 96 98 96 99 94 98 95 82 79 79 81 81 89 95 95 99 96 94 93 94 Engine 3 | . . . 8 14 14 . 1 5 4 4 4 4 4 4 2 . . . . 1 . . Core 3 | . . . . . . 11 12 10 8 4 4 1 . . 1 4 4 4 3 1 3 3 Reactor 2 | . . . . . . . . . . . . 2 4 4 6 8 8 8 8 8 7 7 Flight 29 | . . . 44 45 42 38 31 30 27 21 19 22 22 21 25 26 26 26 24 27 27 29 Device 18 | . 19 . . 5 9 22 25 20 22 23 22 20 22 22 20 21 20 21 22 24 25 28 Processor 12 | . 2 20 17 8 7 6 5 13 14 14 13 13 13 15 17 17 17 17 16 14 12 7 Protection 1 | . . . 5 7 7 2 . . . . . . . . . . . . . . . . Impact Weapon 7 | . 11 40 18 11 7 9 7 5 4 4 4 4 4 4 4 4 3 4 4 . . . Slashing Weapon 3 | . . . . . . . . 3 4 4 4 4 4 4 4 8 8 8 8 8 7 7 Piercing Weapon 4 | . . . . . . 1 7 10 4 4 4 4 4 4 4 4 4 3 4 7 7 7 Peak Build Rating 186 | . 3 4 31 46 46 65 81 88 94 88 88 92 84 96 114 114 124 131 140 153 159 186 Average Rating 85 | . 1 3 25 32 42 56 70 84 91 81 81 83 84 93 106 113 114 123 127 147 152 175 On Entrance 77 | . . 3 3 31 39 46 64 74 88 83 80 82 84 84 96 114 114 124 123 128 153 159 Avg Prop Armor Cover (%) 2 | . . . . . . . . . . . . . . . 2 . . . . 2 . . Naked Turns 3 | . 3 . . . . . . . . . . . . . . . . . . . . . Heaviest Build 81 | . 4 4 22 25 28 31 40 43 49 40 40 45 45 47 54 54 56 56 61 72 78 81 Greatest Support 91 | 3 8 8 35 35 35 38 43 43 48 42 45 45 45 45 54 54 58 61 61 73 78 91 Greatest Overweight (x) 1 | . 1 . . . . 1 . . 1 1 1 . . 1 1 . . . 1 1 . . Average Overweight (x) . | . . . . . . . . . . . . . . . . . . . . . . . Largest Inventory Capacity 5 | . 1 2 2 2 2 2 2 2 2 3 3 4 4 4 4 5 5 5 5 5 5 5 Average Capacity 3 | . . 1 2 2 2 2 2 2 2 2 3 3 4 4 4 4 5 5 5 5 5 5 Most Carried 5 | . 1 2 2 2 2 2 2 2 2 3 3 4 4 4 4 5 5 5 5 5 5 5 Average Carried 2 | . . 1 1 1 2 1 1 1 1 2 2 3 4 3 4 4 4 3 3 4 4 4 Final Capacity 5 | . 1 2 2 2 2 2 2 2 2 3 3 4 4 4 4 5 5 5 5 5 5 5 Final Carried 5 | . 1 1 2 2 2 2 2 2 2 3 3 4 4 4 4 5 4 3 5 5 4 5 Class Distribution -------------------- 50% | Sprinter 24% | Scavenger-Sprinter 13% | Scientist-Sprinter 4% | Gladiator Dominant Class ---------------- Mutant | -10/Materials Gladiator | -10/Mines Sprinter | -9/Materials Sprinter | -9/Mines Sprinter | -8/Materials Sprinter | -7/Factory Scientist-Sprinter | -6/Factory Sprinter | -6/Extension Sprinter | -5/Factory Gladiator | -5/Upper Caves Sprinter | -5/Upper Caves Sprinter | -5/Zhirov Sprinter | -4/Proximity Caves Scientist-Sprinter | -4/Factory Scientist-Sprinter | -4/Upper Caves Scavenger-Sprinter | -4/Upper Caves Scavenger-Sprinter | -4/Warlord Scavenger-Sprinter | -3/Proximity Caves Scavenger-Sprinter | -3/Research Scavenger-Sprinter | -3/Quarantine Infiltrator-Sprinter | -2/Research Scavenger-Sprinter | -1/Access Resources | -11 -10 -10 -9 -9 -8 -7 -6 -6 -5 -5 -5 -5 -4 -4 -4 -4 -4 -3 -3 -3 -2 -1 ----------- Run | Yrd Mat Min Mat Min Mat Fac Fac Ext Fac Upp Upp Zhi Pro Fac Upp Upp War Pro Res Qua Res Acc Matter Collected 3099 | 200 90 20 225 81 138 141 202 90 60 35 85 37 63 40 60 . 100 . 120 216 235 861 Remotely 80 | . 80 . . . . . . . . . . . . . . . . . . . . . Salvage Created 10478 | . 177 . 902 73 353 328 531 1013 380 . 383 37 119 361 705 200 . 88 603 1067 626 2532 Parts 487 | . 5 . 33 6 16 8 26 35 21 1 15 1 14 10 44 14 . 4 13 53 23 145 Haulers Intercepted 21 | . 2 . 6 . 1 1 1 1 1 . . . . . . . . . 1 1 2 4 Recyclers Shooed 1 | . 1 . . . . . . . . . . . . . . . . . . . . . Parts Field Recycled . | . . . . . . . . . . . . . . . . . . . . . . . Retrieved Matter . | . . . . . . . . . . . . . . . . . . . . . . . Parts Self-Destructed 77 | . . . . . . . . . . 1 14 1 14 . 33 10 . 4 . . . . Prevented 6 | . . . . . . . . . . . 2 . . . . 4 . . . . . . Parts Restored . | . . . . . . . . . . . . . . . . . . . . . . . Kills | -11 -10 -10 -9 -9 -8 -7 -6 -6 -5 -5 -5 -5 -4 -4 -4 -4 -4 -3 -3 -3 -2 -1 ------- Run | Yrd Mat Min Mat Min Mat Fac Fac Ext Fac Upp Upp Zhi Pro Fac Upp Upp War Pro Res Qua Res Acc Combat Hostiles Destroyed 178 | . 3 1 25 10 3 5 10 20 7 1 9 . 3 3 16 4 . 1 5 11 3 38 Melee 123 | . . 1 9 . 2 . 5 8 7 1 8 . 3 3 15 3 . 1 5 11 3 38 AOE 9 | . 2 . . 7 . . . . . . . . . . . . . . . . . . Classes Destroyed 20 | . 4 1 3 1 . . 1 2 2 . . . 1 . 1 . . . . 2 . 2 Worker 1 | . . . . . . . . . 1 . . . . . . . . . . . . . Builder 2 | . 1 . . . . . . . 1 . . . . . . . . . . . . . Hauler 21 | . 2 . 6 . 1 1 1 1 1 . . . . . . . . . 1 1 2 4 Recycler 2 | . 1 . . . 1 . . . . . . . . . . . . . . . . . Operator 14 | . . . 2 . 1 2 2 . . . . . . 1 . . . . . 2 1 3 Drone 1 | . . . . . . . . . . . . . 1 . . . . . . . . . Watcher 25 | . . . 5 . 1 1 2 3 1 . . . . 1 . . . . 1 1 3 6 Swarmer 36 | . . 1 12 3 . . . . 5 . 1 . . . 7 . . . . . . 7 Cutter 4 | . . . . . . . . . . . . . . . . . . . . . . 4 Grunt 49 | . 3 . 4 3 . 2 3 7 1 . 5 . . . 5 1 . . . 1 . 14 Duelist 1 | . . . . . . . . . . . . . . . 1 . . . . . . . Researcher 2 | . . . . . . . . . . . . . . . . . . . . 2 . . Sentry 42 | . . . 9 . 3 3 4 7 . 1 3 . . 1 2 1 . . . . 3 5 Specialist 1 | . . . . . . . . . . . . . . . . . . . . 1 . . Hunter 18 | . . . . . . . 3 1 . . . . . 2 . 2 . 1 4 3 . 2 Programmer 16 | . . . . . . . . . 1 . . . 2 . 2 . . . 1 6 . 4 Heavy 2 | . . . . . . . . . . . . . . . . . . . . . . 2 Behemoth 1 | . . . . . . . . 1 . . . . . . . . . . . . . . Assembled 4 | . . . . 4 . . . . . . . . . . . . . . . . . . Thug 2 | . . . . . . . . 2 . . . . . . . . . . . . . . Butcher 1 | . . . . . . . . 1 . . . . . . . . . . . . . . Guerrilla 1 | . . . . . . . . 1 . . . . . . . . . . . . . . Mutant 1 | . . . . . . . . . . . . . . . 1 . . . . . . . Best Kill Streak 18 | . 4 1 7 4 4 3 8 7 10 1 4 . 2 2 4 4 . 1 3 9 6 18 Combat Bots Only 15 | . 2 1 7 4 1 2 3 7 5 1 4 . 2 2 4 4 . 1 2 3 1 15 Max Kills in Single Turn 3 | . 2 1 1 3 1 1 1 1 1 1 1 . 1 1 1 1 . 1 1 1 1 2 Gunslinging . | . . . . . . . . . . . . . . . . . . . . . . . Exploded 3 | . 1 . . 3 . . . . . . . . . . . . . . . . . . Melee 2 | . . 1 1 . 1 . 1 1 1 1 1 . 1 1 1 1 . 1 1 1 1 2 Uniques/NPCs Destroyed . | . . . . . . . . . . . . . . . . . . . . . . . Combat | -11 -10 -10 -9 -9 -8 -7 -6 -6 -5 -5 -5 -5 -4 -4 -4 -4 -4 -3 -3 -3 -2 -1 -------- Run | Yrd Mat Min Mat Min Mat Fac Fac Ext Fac Upp Upp Zhi Pro Fac Upp Upp War Pro Res Qua Res Acc Hostile Shots Fired 1220 | . 14 24 135 24 4 79 68 232 52 12 34 . 7 25 79 26 18 30 39 99 13 206 Missed 661 | . 4 7 51 10 . 37 29 122 20 3 15 . 5 13 45 21 16 27 29 64 12 131 Hits 559 | . 10 17 84 14 4 42 39 110 32 9 19 . 2 12 34 5 2 3 10 35 1 75 Melee 6 | . . . . . . . . . 2 . . . . . . . . . . . . 4 Projectile 553 | . 10 17 84 14 4 42 39 110 30 9 19 . 2 12 34 5 2 3 10 35 1 71 AOE 3 | . . . . . . . . . 1 . . . . . 1 . . . . . . 1 Critical Strikes 24 | . . . 5 . 1 . 1 2 2 . 2 . . 1 . . . 1 . 3 . 6 Actively Blocked 6 | . . . . . . . . . . . . . . . . . . . . . . 6 Part Disruptions 5 | . . . . . . . . . . . . . . . 3 . . . . 2 . . Damage Taken 7983 | . 131 150 890 157 45 260 436 1130 489 151 248 . 19 164 503 79 131 54 194 610 23 2119 Core 6398 | . 107 138 672 90 34 213 344 903 392 118 204 . 15 131 399 64 121 46 155 494 18 1740 Absorbed by Shields 844 | . . . . . 16 116 172 83 131 100 159 . 20 38 . . 9 . . . . . Redirected to Core 4941 | . 68 42 422 68 34 134 305 741 325 118 153 . 15 116 361 48 35 24 138 407 18 1369 Regen/Repaired (Parts) 11 | . . . . . 11 . . . . . . . . . . . . . . . . . Core Remaining (%) 88 | 100 . 96 . 99 93 82 . 70 . . . . 100 . . . . 88 . 63 92 . Volleys Fired 17 | . 5 . . 6 3 3 . . . . . . . . . . . . . . . . Largest 1 | . 1 . . 1 1 1 . . . . . . . . . . . . . . . . Hottest 33 | . 30 . . 33 33 33 . . . . . . . . . . . . . . . . Shots Fired 17 | . 5 . . 6 3 3 . . . . . . . . . . . . . . . . Gun . | . . . . . . . . . . . . . . . . . . . . . . . Cannon . | . . . . . . . . . . . . . . . . . . . . . . . Launcher 17 | . 5 . . 6 3 3 . . . . . . . . . . . . . . . . Special . | . . . . . . . . . . . . . . . . . . . . . . . Kinetic . | . . . . . . . . . . . . . . . . . . . . . . . Thermal . | . . . . . . . . . . . . . . . . . . . . . . . Explosive 17 | . 5 . . 6 3 3 . . . . . . . . . . . . . . . . Electromagnetic . | . . . . . . . . . . . . . . . . . . . . . . . Robot Hit Streak 3 | . 3 . . 2 . 1 . . . . . . . . . . . . . . . . Robot Miss Streak 2 | . . . . 2 . 1 . . . . . . . . . . . . . . . . Penetration Max . | . . . . . . . . . . . . . . . . . . . . . . . Secondary Targets . | . . . . . . . . . . . . . . . . . . . . . . . Shots Hit Robots 650 | . 14 3 78 10 5 29 34 74 22 10 37 5 8 18 54 9 1 4 24 48 22 141 Core Hits 240 | . 8 . 15 8 6 6 9 17 9 3 12 4 5 6 22 5 . 2 9 19 8 67 Critical Kills 7 | . . . 5 . . . . . 2 . . . . . . . . . . . . . Critical Parts Destroyed 47 | . 3 . 19 . . 5 7 7 1 . 3 . . 1 . 1 . . . . . . Critical Strikes 82 | . 3 . 25 . . 5 8 9 4 . 5 . . 2 2 1 . 2 1 4 . 11 Smash 56 | . 3 . 25 . . 5 8 7 3 . 3 . . 1 . 1 . . . . . . Sever 22 | . . . . . . . . 1 . . 1 . . 1 2 . . 2 1 3 . 11 Impale 4 | . . . . . . . . 1 1 . 1 . . . . . . . . 1 . . Melee Attacks 821 | . 17 9 104 8 6 38 46 94 26 10 43 6 13 21 63 11 1 7 31 57 30 180 Impact 333 | . 17 9 104 8 6 34 34 55 13 8 20 . 3 6 10 2 . 1 3 . . . Slashing 313 | . . . . . . . . 12 8 1 11 5 9 13 39 8 . 4 26 39 19 119 Piercing 175 | . . . . . . 4 12 27 5 1 12 1 1 2 14 1 1 2 2 18 11 61 Sneak Attacks 95 | . 3 . 7 . 1 3 3 17 5 . 8 . . . 14 1 . . 2 4 6 21 Combat Hostiles 32 | . . . . . . 1 2 8 . . . . . . 6 1 . . 1 3 3 7 Follow-up Attacks 205 | . . 2 14 . . 6 9 26 12 2 10 . 1 7 18 3 . 1 7 18 9 60 Damage Inflicted 37692 | . 681 106 3051 668 435 1250 1545 3953 1296 344 1995 514 488 955 3326 553 5 164 1413 2861 1549 10540 Guns . | . . . . . . . . . . . . . . . . . . . . . . . Cannons . | . . . . . . . . . . . . . . . . . . . . . . . Explosions 856 | . 248 . . 328 128 152 . . . . . . . . . . . . . . . . Melee 36836 | . 433 106 3051 340 307 1098 1545 3953 1296 344 1995 514 488 955 3326 553 5 164 1413 2861 1549 10540 Ramming . | . . . . . . . . . . . . . . . . . . . . . . . Kinetic . | . . . . . . . . . . . . . . . . . . . . . . . Thermal . | . . . . . . . . . . . . . . . . . . . . . . . Explosive 856 | . 248 . . 328 128 152 . . . . . . . . . . . . . . . . Electromagnetic . | . . . . . . . . . . . . . . . . . . . . . . . Impact 12361 | . 433 106 3051 340 307 1000 1313 2891 762 268 902 . . 254 565 64 . . 105 . . . Slashing 18298 | . . . . . . . . 407 340 47 776 514 457 634 2418 489 . 159 1268 2124 1325 7340 Piercing 6177 | . . . . . . 98 232 655 194 29 317 . 31 67 343 . 5 5 40 737 224 3200 Highest Corruption 3 | . . . . . . 1 1 1 2 2 2 2 2 . . . . . . 3 . 1 Average Corruption 1 | . . . . . . 1 1 1 1 2 2 2 2 . . . . . . 2 . 1 Corruption Purged . | . . . . . . . . . . . . . . . . . . . . . . . Corruption Blocked 2 | . . . . . . . . . . . . . . . . . . . . 2 . . Effects 21 | . . . . . . . . 3 . 2 11 2 1 . . . . . . 1 . 1 Message Errors 7 | . . . . . . . . 1 . . 4 1 1 . . . . . . . . . Matter Fused 5 | . . . . . . . . . . 1 3 . . . . . . . . . . 1 Heat Flow Errors 4 | . . . . . . . . 2 . . 2 . . . . . . . . . . . Energy Discharges 2 | . . . . . . . . . . . 1 . . . . . . . . 1 . . Data Loss (minor) 1 | . . . . . . . . . . . 1 . . . . . . . . . . . Data Loss (major) 2 | . . . . . . . . . . 1 . 1 . . . . . . . . . . Overload Shots . | . . . . . . . . . . . . . . . . . . . . . . . Overflow Damage 5626 | . 132 30 946 39 38 328 664 834 247 . 321 101 37 126 278 78 . . 112 410 112 793 Projectiles . | . . . . . . . . . . . . . . . . . . . . . . . Explosions 17 | . . . . . 12 5 . . . . . . . . . . . . . . . . Melee 5609 | . 132 30 946 39 26 323 664 834 247 . 321 101 37 126 278 78 . . 112 410 112 793 Knockbacks 43 | . 3 1 4 3 . 4 5 12 1 . 5 . . 2 2 . . . 1 . . . Impact 41 | . 3 1 4 3 . 4 5 10 1 . 5 . . 2 2 . . . 1 . . . Kinetic . | . . . . . . . . . . . . . . . . . . . . . . . Secondary 2 | . . . . . . . . 2 . . . . . . . . . . . . . . Self-Inflicted Damage 10 | . 10 . . . . . . . . . . . . . . . . . . . . . Shots 2 | . 2 . . . . . . . . . . . . . . . . . . . . . Rammed . | . . . . . . . . . . . . . . . . . . . . . . . Targets Rammed . | . . . . . . . . . . . . . . . . . . . . . . . Kicked . | . . . . . . . . . . . . . . . . . . . . . . . Crushed . | . . . . . . . . . . . . . . . . . . . . . . . Highest Temperature 392 | . 5 . 332 261 112 303 14 274 . . 187 . . . . . . . . . 6 392 Average Temperature 90 | . 5 . 106 89 39 64 6 126 . . 108 . . . . . . . . . 3 113 Received Heat Transfer 1257 | . 66 . 213 81 26 92 73 341 31 21 101 . . . 83 . 9 . . 48 . 72 Effects 8 | . . . 1 2 . . . . . . . . . . . . . . . . . 5 Shutdowns 1 | . . . . . . . . . . . . . . . . . . . . . . 1 Energy Bleed 1 | . . . . . . . . . . . . . . . . . . . . . . 1 Interference 5 | . . . . 2 . . . . . . . . . . . . . . . . . 3 Matter Decay 1 | . . . 1 . . . . . . . . . . . . . . . . . . . Siege Activations . | . . . . . . . . . . . . . . . . . . . . . . . Martial Activations . | . . . . . . . . . . . . . . . . . . . . . . . Shielding Activations . | . . . . . . . . . . . . . . . . . . . . . . . Robots Disrupted . | . . . . . . . . . . . . . . . . . . . . . . . Combat Hostiles . | . . . . . . . . . . . . . . . . . . . . . . . Robots Corrupted 59 | . 2 . 23 3 1 5 8 12 1 . 1 . . 1 1 1 . . . . . . Combat Hostiles 44 | . 1 . 16 3 1 5 5 10 . . 1 . . . 1 1 . . . . . . Parts Fried 80 | . 5 1 27 3 2 12 7 15 3 . 3 . . 1 . 1 . . . . . . Impact Corruptions 125 | . 6 2 42 3 1 12 17 23 7 . 6 . . 3 2 1 . . . . . . Robots Melted . | . . . . . . . . . . . . . . . . . . . . . . . Combat Hostiles . | . . . . . . . . . . . . . . . . . . . . . . . Parts Melted 1 | . . . . . . . . . . . . . . . . . . . . . . 1 Heat Transferred . | . . . . . . . . . . . . . . . . . . . . . . . Parts Sabotaged . | . . . . . . . . . . . . . . . . . . . . . . . Parts Stolen . | . . . . . . . . . . . . . . . . . . . . . . . Parts Stripped . | . . . . . . . . . . . . . . . . . . . . . . . Power Chain Reactions . | . . . . . . . . . . . . . . . . . . . . . . . Alert | -11 -10 -10 -9 -9 -8 -7 -6 -6 -5 -5 -5 -5 -4 -4 -4 -4 -4 -3 -3 -3 -2 -1 ------- Run | Yrd Mat Min Mat Min Mat Fac Fac Ext Fac Upp Upp Zhi Pro Fac Upp Upp War Pro Res Qua Res Acc Maximum Alert Level 4 | . . . 2 1 . . . 2 2 . . . . . . . . . . 1 1 4 Low Security (%) 60 | 100 100 100 27 . 100 100 100 56 . . . . . 100 . . . . 100 67 85 22 Level 1 20 | . . . 27 100 . . . 11 95 . . . . . . . . . . 32 15 28 Level 2 14 | . . . 45 . . . . 32 4 . . . . . . . . . . . . 18 Level 3 2 | . . . . . . . . . . . . . . . . . . . . . . 20 Level 4 1 | . . . . . . . . . . . . . . . . . . . . . . 10 Level 5 . | . . . . . . . . . . . . . . . . . . . . . . . High Security . | . . . . . . . . . . . . . . . . . . . . . . . Max Security . | . . . . . . . . . . . . . . . . . . . . . . . Peak Influence 1235 | . 81 68 603 309 164 159 188 643 429 . . . . 79 . . . . 101 305 245 1235 Initial 310 | . . 26 14 231 104 44 57 63 310 . . . . 9 . . . . . 56 165 140 Average 221 | . 44 26 326 260 121 91 104 270 307 . . . . 20 . . . . 48 155 174 495 Influence Increases 6518 | . 138 78 1029 198 163 244 328 986 199 20 260 15 65 205 335 90 . 20 171 369 160 1445 Destroy 0b10 Robot/C 3680 | . 60 60 600 120 60 100 200 460 140 20 180 . 40 60 300 80 . 20 100 260 60 760 Destroy 0b10 Robot/NC 360 | . 20 . 65 . 20 20 25 20 20 . 5 15 15 10 . . . . 10 20 30 65 Destroy Leader 790 | . 14 10 162 20 34 34 76 66 24 . . . 10 22 20 10 . . 34 44 40 170 Allied During Kill 46 | . . 8 20 . . . . 18 . . . . . . . . . . . . . . Successful Hack 186 | . . . 17 . 21 29 12 42 . . . . . 53 . . . . 12 . . . Disable Machine 105 | . . . 15 . . 15 15 15 . . . . . 15 . . . . 15 15 . . Destroy Structure 121 | . 29 . . 58 13 16 . 5 . . . . . . . . . . . . . . Partial Spotted 165 | . . . 30 . . . . 30 . . . . . 15 . . . . . 30 15 45 Lose Combat Pursuer 1065 | . 15 . 120 . 15 30 . 330 15 . 75 . . 30 15 . . . . . 15 405 Influence Decreases 5283 | . 70 108 473 523 335 223 315 482 415 256 314 144 50 181 195 115 154 20 70 175 220 445 Entered New Map 1902 | . . 42 24 363 165 53 61 68 325 156 36 129 . 6 15 35 154 . . 45 130 95 Time Decay 3179 | . 70 66 407 160 170 160 254 294 80 90 278 15 50 175 180 80 . 20 70 130 80 350 Lost Part 50 | . . . 10 . . 10 . . 10 10 . . . . . . . . . . 10 . Lost Ally 152 | . . . 32 . . . . 120 . . . . . . . . . . . . . . Squads Dispatched 24 | . . . . . 1 2 1 4 2 . . . . 2 . . . . . 4 . 8 Investigation 5 | . . . . . 1 . . 4 . . . . . . . . . . . . . . Extermination 11 | . . . . . . 1 1 . 1 . . . . 2 . . . . . 1 . 5 Reinforcement 7 | . . . . . . 1 . . 1 . . . . . . . . . . 3 . 2 Assault 1 | . . . . . . . . . . . . . . . . . . . . . . 1 Garrison . | . . . . . . . . . . . . . . . . . . . . . . . Intercept . | . . . . . . . . . . . . . . . . . . . . . . . Searches Triggered . | . . . . . . . . . . . . . . . . . . . . . . . Construction Impeded . | . . . . . . . . . . . . . . . . . . . . . . . Haulers Reinforced 2 | . . . . . . 1 . . . . . . . . . . . . . 1 . . Active Scanning Responses . | . . . . . . . . . . . . . . . . . . . . . . . Cargo Convoy Interrupts . | . . . . . . . . . . . . . . . . . . . . . . . Stealth | -11 -10 -10 -9 -9 -8 -7 -6 -6 -5 -5 -5 -5 -4 -4 -4 -4 -4 -3 -3 -3 -2 -1 --------- Run | Yrd Mat Min Mat Min Mat Fac Fac Ext Fac Upp Upp Zhi Pro Fac Upp Upp War Pro Res Qua Res Acc Distress Signals 10 | . 2 . 2 . . . . 1 1 . . . . 1 . . . . . . 2 1 Communications Jammed 55 | . . . . . . . 1 18 . . . . 1 1 . . . . . . 12 22 Distress Signals 39 | . . . . . . . . 14 . . . . . . . . . . . . 12 13 Times Spotted 328 | . 6 3 46 5 5 9 14 40 17 1 10 . 3 6 14 3 26 6 6 18 12 78 Peak Tracking Total 17 | . 3 3 6 3 2 2 3 12 11 1 4 . 2 2 5 2 17 4 2 4 6 10 Tactical Retreats 34 | . 1 . 4 . 1 1 . 10 1 . 1 . . 2 1 . . . . . 1 11 Traps | -11 -10 -10 -9 -9 -8 -7 -6 -6 -5 -5 -5 -5 -4 -4 -4 -4 -4 -3 -3 -3 -2 -1 ------- Run | Yrd Mat Min Mat Min Mat Fac Fac Ext Fac Upp Upp Zhi Pro Fac Upp Upp War Pro Res Qua Res Acc Traps Triggered 14 | . . . . . 1 1 3 7 . . . . . . . . . . . . . 2 Indirectly . | . . . . . . . . . . . . . . . . . . . . . . . Trap Hack Attempts . | . . . . . . . . . . . . . . . . . . . . . . . Triggered . | . . . . . . . . . . . . . . . . . . . . . . . Disarmed . | . . . . . . . . . . . . . . . . . . . . . . . Reprogrammed . | . . . . . . . . . . . . . . . . . . . . . . . Reused . | . . . . . . . . . . . . . . . . . . . . . . . Traps Extracted . | . . . . . . . . . . . . . . . . . . . . . . . Installed . | . . . . . . . . . . . . . . . . . . . . . . . Triggered . | . . . . . . . . . . . . . . . . . . . . . . . Machines | -11 -10 -10 -9 -9 -8 -7 -6 -6 -5 -5 -5 -5 -4 -4 -4 -4 -4 -3 -3 -3 -2 -1 ---------- Run | Yrd Mat Min Mat Min Mat Fac Fac Ext Fac Upp Upp Zhi Pro Fac Upp Upp War Pro Res Qua Res Acc Machines Disabled 9 | . . . 1 . . 1 1 1 . . . . . 1 1 . . 1 1 1 . . Max in Single Turn 1 | . . . 1 . . 1 1 1 . . . . . 1 1 . . 1 1 1 . . Garrison Access 1 | . . . . . . . . . . . . . . . . . . . . . 1 . Machines Repaired . | . . . . . . . . . . . . . . . . . . . . . . . Machines Dismantled . | . . . . . . . . . . . . . . . . . . . . . . . Machines Sabotaged . | . . . . . . . . . . . . . . . . . . . . . . . Overloaded Fab Kills . | . . . . . . . . . . . . . . . . . . . . . . . Hacking | -11 -10 -10 -9 -9 -8 -7 -6 -6 -5 -5 -5 -5 -4 -4 -4 -4 -4 -3 -3 -3 -2 -1 --------- Run | Yrd Mat Min Mat Min Mat Fac Fac Ext Fac Upp Upp Zhi Pro Fac Upp Upp War Pro Res Qua Res Acc Machines Accessed 53 | . . . 5 1 5 3 1 13 . . . 8 1 5 . 1 5 . 1 2 . 2 Terminals 29 | . . . 4 . 4 1 . 13 . . . . 1 3 . . . . . 2 . 1 Fabricators 1 | . . . . . . . . . . . . . . . . . . . . . . 1 Repair Stations 1 | . . . . . 1 . . . . . . . . . . . . . . . . . Recycling Units . | . . . . . . . . . . . . . . . . . . . . . . . Scanalyzers 7 | . . . 1 . . 2 1 . . . . . . 2 . . . . 1 . . . Garrison Access . | . . . . . . . . . . . . . . . . . . . . . . . Total Hacks 155 | . . . 14 1 17 7 3 28 . . . 47 1 11 . 1 17 . 3 2 . 3 Successful 102 | . . . 7 1 6 3 1 9 . . . 47 1 7 . 1 17 . 1 1 . . Failed 52 | . . . 6 . 11 4 2 19 . . . . . 4 . . . . 2 1 . 3 Catastrophic 5 | . . . . . . . . 5 . . . . . . . . . . . . . . Database Lockouts 1 | . . . 1 . . . . . . . . . . . . . . . . . . . Manual 2 | . . . . . . . . . . . . . . . . . 1 1 . . . . Terminals 67 | . . . 12 . 14 2 . 28 . . . . 1 6 . . . . . 2 . 2 Fabricators 1 | . . . . . . . . . . . . . . . . . . . . . . 1 Repair Stations 3 | . . . . . 3 . . . . . . . . . . . . . . . . . Recycling Units . | . . . . . . . . . . . . . . . . . . . . . . . Scanalyzers 18 | . . . 2 . . 5 3 . . . . . . 5 . . . . 3 . . . Garrison Access . | . . . . . . . . . . . . . . . . . . . . . . . Terminal Hacks 93 | . . . 6 1 4 1 . 9 . . . 47 1 5 . 1 17 . . 1 . . Record 48 | . . . . . . . . 1 . . . 35 1 1 . . 10 . . . . . Part Schematic 4 | . . . . . . . . . . . . 4 . . . . . . . . . . Robot Analysis 4 | . . . . . . . . . . . . 4 . . . . . . . . . . Prototype ID Bank 14 | . . . 1 . 2 . . 1 . . . 4 . . . . 6 . . . . . Open Door 9 | . . . . 1 . . . 6 . . . . . . . 1 1 . . . . . Open DSF 1 | . . . . . . 1 . . . . . . . . . . . . . . . . Branch Access Points 1 | . . . . . 1 . . . . . . . . . . . . . . . . . Emergency Access Points 2 | . . . 2 . . . . . . . . . . . . . . . . . . . Alert Level 1 | . . . 1 . . . . . . . . . . . . . . . . . . . Recall Investigation 1 | . . . 1 . . . . . . . . . . . . . . . . . . . Hauler Manifests 1 | . . . . . . . . . . . . . . 1 . . . . . . . . Registered Prototypes 1 | . . . . . 1 . . . . . . . . . . . . . . . . . Zone Layout 6 | . . . 1 . . . . 1 . . . . . 3 . . . . . 1 . . Fabricator Hacks . | . . . . . . . . . . . . . . . . . . . . . . . Repair Station Hacks 2 | . . . . . 2 . . . . . . . . . . . . . . . . . Scan Component 1 | . . . . . 1 . . . . . . . . . . . . . . . . . Repair 1 | . . . . . 1 . . . . . . . . . . . . . . . . . Recycling Unit Hacks . | . . . . . . . . . . . . . . . . . . . . . . . Scanalyzer 7 | . . . 1 . . 2 1 . . . . . . 2 . . . . 1 . . . Retrieve Study 7 | . . . 1 . . 2 1 . . . . . . 2 . . . . 1 . . . Garrison Access Hacks . | . . . . . . . . . . . . . . . . . . . . . . . Unauthorized Hacks . | . . . . . . . . . . . . . . . . . . . . . . . Terminals . | . . . . . . . . . . . . . . . . . . . . . . . Fabricators . | . . . . . . . . . . . . . . . . . . . . . . . Repair Stations . | . . . . . . . . . . . . . . . . . . . . . . . Recycling Units . | . . . . . . . . . . . . . . . . . . . . . . . Scanalyzers . | . . . . . . . . . . . . . . . . . . . . . . . Garrison Access . | . . . . . . . . . . . . . . . . . . . . . . . Data Cores Recovered 14 | . . . 2 . 1 2 2 . . . . . . 1 . . . . . 2 1 3 Used 5 | . . . 2 . 1 . . . . . . . . . . . . . . 2 . . Hacking Detections 26 | . . . 4 . 4 2 1 7 . . . . . 4 . . . . 1 1 . 2 Full Trace Events 5 | . . . . . 1 . . 4 . . . . . . . . . . . . . . Feedback Events . | . . . . . . . . . . . . . . . . . . . . . . . Feedback Blocked . | . . . . . . . . . . . . . . . . . . . . . . . Robot Schematics Acquired . | . . . . . . . . . . . . . . . . . . . . . . . Robots Built . | . . . . . . . . . . . . . . . . . . . . . . . Authchips . | . . . . . . . . . . . . . . . . . . . . . . . Time . | . . . . . . . . . . . . . . . . . . . . . . . Total Robot Build Rating . | . . . . . . . . . . . . . . . . . . . . . . . Part Schematics Acquired 13 | . . . . . . . . . . . . 4 . . . . . . . 9 . . Parts Built . | . . . . . . . . . . . . . . . . . . . . . . . Authchips . | . . . . . . . . . . . . . . . . . . . . . . . Time . | . . . . . . . . . . . . . . . . . . . . . . . Total Part Build Rating . | . . . . . . . . . . . . . . . . . . . . . . . Part Studies Acquired 7 | . . . 1 . . 2 1 . . . . . . 2 . . . . 1 . . . Parts Repaired 1 | . . . . . 1 . . . . . . . . . . . . . . . . . Time 108 | . . . . . 108 . . . . . . . . . . . . . . . . . Parts Recycled . | . . . . . . . . . . . . . . . . . . . . . . . Recycled Matter . | . . . . . . . . . . . . . . . . . . . . . . . Retrieved Matter . | . . . . . . . . . . . . . . . . . . . . . . . Retrieved Components . | . . . . . . . . . . . . . . . . . . . . . . . Parts Scanalyzed . | . . . . . . . . . . . . . . . . . . . . . . . Part Schematics Acquired . | . . . . . . . . . . . . . . . . . . . . . . . Parts Damaged . | . . . . . . . . . . . . . . . . . . . . . . . Bothacking | -11 -10 -10 -9 -9 -8 -7 -6 -6 -5 -5 -5 -5 -4 -4 -4 -4 -4 -3 -3 -3 -2 -1 ------------ Run | Yrd Mat Min Mat Min Mat Fac Fac Ext Fac Upp Upp Zhi Pro Fac Upp Upp War Pro Res Qua Res Acc Used RIF Installer . | . . . . . . . . . . . . . . . . . . . . . . . Robots Hacked . | . . . . . . . . . . . . . . . . . . . . . . . Non-combat . | . . . . . . . . . . . . . . . . . . . . . . . Combat . | . . . . . . . . . . . . . . . . . . . . . . . Robot Hacks Applied . | . . . . . . . . . . . . . . . . . . . . . . . Relay Couplers Released 1 | . . . . . . . . . . . . . . . . . . . . . 1 . Machine Destruction 1 | . . . . . . . . . . . . . . . . . . . . . 1 . Fabnet Peak Effective % . | . . . . . . . . . . . . . . . . . . . . . . . Robots Rewired . | . . . . . . . . . . . . . . . . . . . . . . . Allies Hacked . | . . . . . . . . . . . . . . . . . . . . . . . Hacks Repelled . | . . . . . . . . . . . . . . . . . . . . . . . Allies | -11 -10 -10 -9 -9 -8 -7 -6 -6 -5 -5 -5 -5 -4 -4 -4 -4 -4 -3 -3 -3 -2 -1 -------- Run | Yrd Mat Min Mat Min Mat Fac Fac Ext Fac Upp Upp Zhi Pro Fac Upp Upp War Pro Res Qua Res Acc Total Allies 9 | . . 2 . . . . . 6 . . . . . . . . . 1 . . . . Largest Group 3 | . . 2 2 . . . . 3 . . . . . . . . . 1 . . . . Highest-Rated Group 101 | . . 45 45 . . . . 101 . . . . . . . . . 56 . . . . Highest-Rated Ally 56 | . . 31 31 . . . . 39 . . . . . . . . . 56 . . . . Total Orders . | . . . . . . . . . . . . . . . . . . . . . . . Ally Attacks 84 | . . 7 25 . . . . 52 . . . . . . . . . . . . . . Total Damage 1108 | . . 81 314 . . . . 713 . . . . . . . . . . . . . . Kills 10 | . . 2 5 . . . . 3 . . . . . . . . . . . . . . Allies Corrupted . | . . . . . . . . . . . . . . . . . . . . . . . Allies Melted 3 | . . . . . . . . 1 . . 1 . . . . . . . . . 1 . Intel | -11 -10 -10 -9 -9 -8 -7 -6 -6 -5 -5 -5 -5 -4 -4 -4 -4 -4 -3 -3 -3 -2 -1 ------- Run | Yrd Mat Min Mat Min Mat Fac Fac Ext Fac Upp Upp Zhi Pro Fac Upp Upp War Pro Res Qua Res Acc Active Infowar (turns) 7674 | . 24 149 1009 293 242 336 540 645 174 191 607 107 104 618 378 175 562 127 174 261 160 798 Sensors 6440 | . . . . 241 242 336 540 645 174 191 607 107 104 618 378 175 562 127 174 261 160 798 Decoding 1804 | . . . . . . . . . . . . . . 378 378 175 562 127 174 10 . . T.N.C. 1234 | . 24 149 1009 52 . . . . . . . . . . . . . . . . . . Cloaking 225 | . . . . . . . . . . . . . . . . . . . . . 131 94 Jamming 5700 | . . . . . . 95 540 645 174 191 607 107 104 618 377 175 562 127 174 261 160 783 Robot Analysis Total 4 | . . . . . . . . . . . . 4 . . . . . . . . . . Derelict Logs Recovered 8 | . . 1 . 2 . . . . . 1 1 . 2 . 1 . . . . . . . Drone Launches . | . . . . . . . . . . . . . . . . . . . . . . . Drone Recoveries . | . . . . . . . . . . . . . . . . . . . . . . . Decoded 0b10 Intel 41 | . . . . . . . . . . . . . . 27 . . . . 13 1 . . Items 41 | . . . . . . . . . . . . . . 27 . . . . 13 1 . . Exploration | -11 -10 -10 -9 -9 -8 -7 -6 -6 -5 -5 -5 -5 -4 -4 -4 -4 -4 -3 -3 -3 -2 -1 ------------- Run | Yrd Mat Min Mat Min Mat Fac Fac Ext Fac Upp Upp Zhi Pro Fac Upp Upp War Pro Res Qua Res Acc Turns Passed 7962 | 14 163 149 1009 320 350 336 540 645 174 191 607 107 104 618 378 175 562 127 174 261 160 798 Spaces Moved 17919 | 28 147 154 1742 957 679 826 1579 1434 430 426 1013 263 357 828 941 724 1378 473 505 489 491 2055 Core 359 | 28 147 154 30 . . . . . . . . . . . . . . . . . . . Treads . | . . . . . . . . . . . . . . . . . . . . . . . Legs . | . . . . . . . . . . . . . . . . . . . . . . . Wheels . | . . . . . . . . . . . . . . . . . . . . . . . Hover . | . . . . . . . . . . . . . . . . . . . . . . . Flight 17560 | . . . 1712 957 679 826 1579 1434 430 426 1013 263 357 828 941 724 1378 473 505 489 491 2055 Fastest Speed 10 | 50 50 50 25 25 23 20 20 20 20 23 23 23 23 23 20 20 20 20 20 18 19 10 Average Speed 22 | 50 55 50 27 25 23 21 20 20 20 37 25 23 23 33 20 20 20 20 20 22 19 13 Slowest Speed 103 | 50 100 50 50 25 25 91 20 20 96 93 93 23 23 93 96 20 20 20 103 99 19 19 Overloaded Moves . | . . . . . . . . . . . . . . . . . . . . . . . Propulsion Burnouts . | . . . . . . . . . . . . . . . . . . . . . . . Robots Hopped 36 | . . . 1 9 1 3 3 4 . . . . . 1 1 . 5 . 1 2 . 5 Potential Cave-ins . | . . . . . . . . . . . . . . . . . . . . . . . Cave-ins Triggered . | . . . . . . . . . . . . . . . . . . . . . . . Teleports 1 | . . . . . . . . . . . . 1 . . . . . . . . . . Exploration Rate (%) 52 | 3 31 32 96 100 48 21 31 95 14 52 92 62 55 22 92 81 92 64 16 46 14 51 Regions Visited 22 Branch Regions 12 Pre-discovered Areas 6 | . . . . 2 . . . . . . 1 3 . . . . . . . . . . Known Exits Taken 19 | . . . 1 1 1 1 1 1 1 1 1 1 1 1 1 1 1 1 1 1 1 . Unknown Exits Taken 3 | 1 1 1 . . . . . . . . . . . . . . . . . . . . Scrap Searched 19 | . . 1 . 3 . . . . . 4 3 . . . 3 4 . 1 . . . . Spaces Dug 1 | . . . . . . . . . . . 1 . . . . . . . . . . . Terrain Destroyed 133 | . 27 . . 74 15 16 . . . . 1 . . . . . . . . . . . Melee 1 | . . . . . . . . . . . 1 . . . . . . . . . . . Projectile . | . . . . . . . . . . . . . . . . . . . . . . . AOE 132 | . 27 . . 74 15 16 . . . . . . . . . . . . . . . . Terrain Rammed . | . . . . . . . . . . . . . . . . . . . . . . . Walls Destroyed . | . . . . . . . . . . . . . . . . . . . . . . . Machines Disabled . | . . . . . . . . . . . . . . . . . . . . . . . Actions | -11 -10 -10 -9 -9 -8 -7 -6 -6 -5 -5 -5 -5 -4 -4 -4 -4 -4 -3 -3 -3 -2 -1 --------- Run | Yrd Mat Min Mat Min Mat Fac Fac Ext Fac Upp Upp Zhi Pro Fac Upp Upp War Pro Res Qua Res Acc Total 21007 | 27 191 213 2098 1005 855 948 1777 1710 497 446 1320 303 368 1146 1055 743 1661 502 547 578 530 2487 Wait 1759 | . 9 42 197 27 155 50 84 82 32 . 239 . 1 299 31 5 257 12 . 3 . 234 Move 17829 | 27 146 153 1739 939 676 819 1572 1425 429 425 1012 262 356 825 938 723 1369 472 502 484 490 2046 Hop 32 | . . . 1 8 1 3 3 4 . . . . . 1 1 . 3 . 1 2 . 4 Pick Up 68 | . 1 1 8 1 . 2 4 4 1 . 1 3 . 1 . 3 4 4 9 6 3 12 Fast Attach 99 | . 5 1 10 1 5 13 11 3 5 2 5 10 . 3 6 . 4 . 1 3 2 9 Attach 36 | . . . 3 1 . 2 4 . 1 . 1 . . 1 . . 5 3 7 2 5 1 Detach 13 | . . . . 1 . . 3 . 1 2 1 . . . . . 2 . 1 . 1 1 Swap 29 | . . . 2 2 3 4 2 1 1 . . . . . . . 1 1 . 6 . 6 Drop 141 | . 2 2 8 2 6 15 15 6 6 1 4 10 . 3 3 2 8 5 8 9 5 21 Fire 17 | . 5 . . 6 3 3 . . . . . . . . . . . . . . . . Melee 523 | . 17 7 84 8 6 31 32 55 13 8 28 5 9 13 38 6 1 5 18 31 15 93 Ram . | . . . . . . . . . . . . . . . . . . . . . . . Kick . | . . . . . . . . . . . . . . . . . . . . . . . Crush . | . . . . . . . . . . . . . . . . . . . . . . . Escape Stasis 116 | . . . . . . . 15 92 . . . . . . . . . . . 9 . . Rewire . | . . . . . . . . . . . . . . . . . . . . . . . Trap . | . . . . . . . . . . . . . . . . . . . . . . . Miscellaneous 345 | . 6 7 46 9 . 6 32 38 8 8 29 13 2 . 38 4 7 . . 23 9 60 Route ------- -11/Scrapyard -10/Materials -10/Mines -9/Materials (discovered 4 exits: *Mat x3 / *Min) -9/Mines (discovered 2 exits: *Mat x2) -8/Materials -7/Factory (discovered 2 exits: *Fac x2) -6/Factory (discovered 4 exits: *Fac / *Low / *Ext x2) -6/Extension (discovered 2 exits: *Fac / *Cet) -5/Factory -5/Upper Caves -5/Upper Caves -5/Zhirov -4/Proximity Caves -4/Factory -4/Upper Caves -4/Upper Caves (discovered 2 exits: *Res / *War) -4/Warlord -3/Proximity Caves -3/Research (discovered 2 exits: *Res / *Qua) -3/Quarantine -2/Research -1/Access History --------- Turn | Location | Event 8 | -11/Scrapyard | Discovered new exit (range 15) 15 | -11/Scrapyard | Entered Materials 170 | -10/Materials | Discovered new exit (range 6) 174 | -10/Materials | Upgraded with Weapon slot (x1) 178 | -10/Materials | Entered Mines 211 | -10/Mines | Learned 2 Materials zone layouts 212 | -10/Mines | Found DCF Scrap (13 items) 236 | -10/Mines | Found a damaged Exp. Sensor Array with a note attached 237 | -10/Mines | Found Prototype Device 247 | -10/Mines | Discovered new exit (range 8) 327 | -10/Mines | Entered Materials 327 | -9/Materials | Accompanied by 2 allies 328 | -9/Materials | Identified exit to Mines 329 | -9/Materials | Reached level 2 332 | -9/Materials | Led the pair of lost Derelicts to an unsafe place 349 | -9/Materials | Upgraded with Propulsion slot (x3) 397 | -9/Materials | Reached level 3 408 | -9/Materials | Upgraded with Propulsion slot (x1) 415 | -9/Materials | Upgraded with Utility slot (x1) 612 | -9/Materials | Central database locked down 625 | -9/Materials | Reached level 4 638 | -9/Materials | Upgraded with Utility slot (x1) 660 | -9/Materials | Build established: Sprinter 677 | -9/Materials | Discovered new exit (range 5) 754 | -9/Materials | Identified exit to Materials 909 | -9/Materials | Destroyed 7 combat bots 909 | -9/Materials | Discovered exit to Materials (range 10) 1052 | -9/Materials | Reached level 5 1099 | -9/Materials | Upgraded with Propulsion slot (x1) 1151 | -9/Materials | Upgraded with Power slot (x1) 1287 | -9/Materials | Discovered exit to Materials (range 8) 1336 | -9/Materials | Entered Mines 1384 | -9/Mines | Discovered exit to Materials (range 12) 1401 | -9/Mines | Discovered exit to Materials (range 4) 1407 | -9/Mines | Received a Rocket Launcher from a helpful Derelict 1417 | -9/Mines | Assembled infested the area 1523 | -9/Mines | A weapon hastily lodged in a ceiling crevice suddenly fell to the ground 1551 | -9/Mines | Learned location of Zion (-6) 1575 | -9/Mines | Reached level 6 1582 | -9/Mines | Found the Drone Emporium 1585 | -9/Mines | Upgraded with Utility slot (x1) 1585 | -9/Mines | Found Prototype Device 1585 | -9/Mines | Identified Thief Drone Bay 1586 | -9/Mines | Identified Exp. Sensor Array 1656 | -9/Mines | Entered Materials 1658 | -8/Materials | Reached level 7 1907 | -8/Materials | Repaired Exp. Sensor Array 1910 | -8/Materials | Discovered new exit (range 10) 1912 | -8/Materials | Identified exit to Factory 2006 | -8/Materials | Entered Factory 2008 | -7/Factory | Reached level 8 2033 | -7/Factory | Discovered new exit (range 7) 2035 | -7/Factory | Identified exit to Factory 2119 | -7/Factory | Upgraded with Utility slot (x1) 2120 | -7/Factory | Upgraded with Weapon slot (x1) 2234 | -7/Factory | Reached level 9 2245 | -7/Factory | Upgraded with Utility slot (x1) 2317 | -7/Factory | Discovered exit to Factory (range 11) 2342 | -7/Factory | Entered another Factory area 2344 | -6/Factory | Reached level 10 2347 | -6/Factory | Upgraded with Weapon slot (x1) 2373 | -6/Factory | Upgraded with Power slot (x1) 2398 | -6/Factory | Discovered new exit (range 15) 2401 | -6/Factory | Identified exit to Extension 2511 | -6/Factory | Discovered new exit (range 15) 2514 | -6/Factory | Identified exit to Factory 2562 | -6/Factory | Discovered exit to Extension (range 14) 2601 | -6/Factory | Discovered new exit (range 8) 2603 | -6/Factory | Identified exit to Lower Caves 2616 | -6/Factory | Build established: Scientist-Sprinter 2729 | -6/Factory | Reached level 11 2882 | -6/Factory | Entered Extension 3019 | -6/Extension | Reached level 12 3062 | -6/Extension | Build established: Sprinter 3079 | -6/Extension | Upgraded with Utility slot (x1) 3079 | -6/Extension | Rescued a captive Derelict 3080 | -6/Extension | Destroyed 7 combat bots 3085 | -6/Extension | Rescued a captive Derelict 3087 | -6/Extension | Rescued a captive Derelict 3091 | -6/Extension | Spotted B-75 Beast 3174 | -6/Extension | Spotted B-75 Beast 3207 | -6/Extension | Rescued a captive Derelict 3221 | -6/Extension | Core integrity fell below 50% 3228 | -6/Extension | Lost 3 allies 3230 | -6/Extension | Rescued a captive Derelict 3246 | -6/Extension | Rescued a captive Derelict 3247 | -6/Extension | Rescued a captive Derelict 3282 | -6/Extension | Reached level 13 3284 | -6/Extension | Rescued a captive Derelict 3295 | -6/Extension | Discovered exit to Factory (range 10) 3295 | -6/Extension | Discovered new exit (range 6) 3296 | -6/Extension | Identified exit to Cetus 3362 | -6/Extension | Disrupted transfer network 3417 | -6/Extension | Destroyed B-75 Beast 3527 | -6/Extension | Entered Factory 3529 | -5/Factory | Reached level 14 3529 | -5/Factory | Upgraded with Utility slot (x1) 3661 | -5/Factory | Reached level 15 3688 | -5/Factory | Discovered new exit (range 16) 3694 | -5/Factory | Identified exit to Upper Caves 3700 | -5/Factory | Core integrity fell below 50% 3701 | -5/Factory | Entered Upper Caves 3702 | -5/Upper Caves | Identified exit to Upper Caves 3784 | -5/Upper Caves | Attracted the attention of an 0b10 outpost 3892 | -5/Upper Caves | Entered another Upper Caves area 3894 | -5/Upper Caves | Reached level 16 3918 | -5/Upper Caves | Attracted the attention of an 0b10 checkpoint 4040 | -5/Upper Caves | Found Alien Artifact 4040 | -5/Upper Caves | Identified Core Expander 4040 | -5/Upper Caves | Installed Core Expander, added new Weapon slot 4191 | -5/Upper Caves | Attracted the attention of an 0b10 outpost 4316 | -5/Upper Caves | Discovered new exit (range 16) 4338 | -5/Upper Caves | Identified exit to Zhirov 4492 | -5/Upper Caves | Encountered a Warlord checkpoint 4494 | -5/Upper Caves | Learned location of Warlord (-4) 4499 | -5/Upper Caves | Entered Zhirov 4499 | -5/Zhirov | Discovered new exit (range 3) 4500 | -5/Zhirov | Identified exit to Proximity Caves 4504 | -5/Zhirov | Met Zhirov 4504 | -5/Zhirov | Reached level 17 4511 | -5/Zhirov | Found Alien Artifact 4511 | -5/Zhirov | Identified Integrated Dissipator 4511 | -5/Zhirov | Installed Integrated Dissipator, increased core heat dissipation (+20) 4528 | -5/Zhirov | Found Alien Artifact 4528 | -5/Zhirov | Identified Transdimensional Reconstructor 4528 | -5/Zhirov | Warped through subspace 4550 | -5/Zhirov | Learned location of Quarantine (-3) 4550 | -5/Zhirov | Learned location of Testing (-2) 4550 | -5/Zhirov | Learned location of Command (-1) 4551 | -5/Zhirov | Zhirov requested help retrieving the SGEMP Prototype 4606 | -5/Zhirov | Entered Proximity Caves 4607 | -4/Proximity Caves | Learned Research interactive machine intel 4656 | -4/Proximity Caves | Spotted B-86 Titan 4701 | -4/Proximity Caves | Discovered new exit (range 16) 4704 | -4/Proximity Caves | Identified exit to Factory 4707 | -4/Proximity Caves | Learned Research trap positions 4710 | -4/Proximity Caves | Entered Factory 4712 | -4/Factory | Reached level 18 4812 | -4/Factory | Reached level 19 4824 | -4/Factory | Upgraded with Utility slot (x1) 5256 | -4/Factory | Build established: Scientist-Sprinter 5312 | -4/Factory | Discovered new exit (range 8) 5314 | -4/Factory | Identified exit to Upper Caves 5328 | -4/Factory | Entered Upper Caves 5344 | -4/Upper Caves | Learned Research security intel 5379 | -4/Upper Caves | Attracted the attention of an 0b10 checkpoint 5433 | -4/Upper Caves | Reached level 20 5574 | -4/Upper Caves | Attracted the attention of an 0b10 outpost 5639 | -4/Upper Caves | Discovered new exit (range 10) 5640 | -4/Upper Caves | Identified exit to Upper Caves 5641 | -4/Upper Caves | Encountered a Warlord checkpoint 5660 | -4/Upper Caves | Attacked by a delusional Derelict stockpiling Unaware 5706 | -4/Upper Caves | Entered another Upper Caves area 5708 | -4/Upper Caves | Reached level 21 5760 | -4/Upper Caves | Discovered new exit (range 10) 5762 | -4/Upper Caves | Identified exit to Research 5874 | -4/Upper Caves | Discovered new exit (range 13) 5877 | -4/Upper Caves | Identified exit to Warlord 5881 | -4/Upper Caves | Entered Warlord 5964 | -4/Warlord | Visited the Vortex Lab 5965 | -4/Warlord | Found Prototype Energy Gun 5965 | -4/Warlord | Identified Vortex Rifle 5986 | -4/Warlord | Warlord's base attacked by MAIN.C 5988 | -4/Warlord | Build established: Scavenger-Sprinter 6028 | -4/Warlord | Met Warlord 6028 | -4/Warlord | Reached level 22 6336 | -4/Warlord | Warlord forces counterattacked 6429 | -4/Warlord | Spotted Striker 6439 | -4/Warlord | Spotted Striker 6441 | -4/Warlord | Spotted Striker 6441 | -4/Warlord | Discovered new exit (range 9) 6443 | -4/Warlord | Identified exit to Proximity Caves 6443 | -4/Warlord | Entered Proximity Caves 6458 | -3/Proximity Caves | Lost 11 allies 6484 | -3/Proximity Caves | Acquired the password to a Derelict Tinkerer's latest research 6488 | -3/Proximity Caves | Found Prototype Special Weapon 6489 | -3/Proximity Caves | Identified Molecular Deconstructor 6545 | -3/Proximity Caves | Spotted B-86 Titan 6567 | -3/Proximity Caves | Discovered exit to Research (range 14) 6570 | -3/Proximity Caves | Entered Research 6571 | -3/Research | Loaded intel: 84 trap records 6572 | -3/Research | Reached level 23 6572 | -3/Research | Reached level 24 6573 | -3/Research | Loaded intel: 46 interactive machine locations 6573 | -3/Research | Upgraded with Utility slot (x1) 6699 | -3/Research | Discovered new exit (range 8) 6711 | -3/Research | Discovered new exit (range 17) 6743 | -3/Research | Identified exit to Quarantine 6744 | -3/Research | Entered Quarantine 6746 | -3/Quarantine | Reached level 25 6750 | -3/Quarantine | Upgraded with Propulsion slot (x1) 6769 | -3/Quarantine | Core integrity fell below 50% 6857 | -3/Quarantine | Reached level 26 6857 | -3/Quarantine | Scanned by Researcher 6895 | -3/Quarantine | Discovered new exit (range 9) 6972 | -3/Quarantine | Found Prototype Device 7005 | -3/Quarantine | Identified exit to Research 7005 | -3/Quarantine | Entered Research 7005 | -2/Research | Warlord forces began assault on 0b10 7007 | -2/Research | Reached level 27 7031 | -2/Research | Identified Exp. Thermal Shield 7081 | -2/Research | Upgraded with Propulsion slot (x1) 7095 | -2/Research | Found Adv. Force Booster 7107 | -2/Research | Reached level 28 7115 | -2/Research | Research machine network offline 7120 | -2/Research | Found Prototype Device 7120 | -2/Research | Identified Exp. Transmission Jammer 7121 | -2/Research | Found Exp. Transmission Jammer 7155 | -2/Research | Discovered new exit (range 12) 7157 | -2/Research | Identified exit to Access 7165 | -2/Research | Entered Access 7167 | -1/Access | Reached level 29 7433 | -1/Access | Reached level 30 7595 | -1/Access | Core integrity fell below 50% 7598 | -1/Access | Destroyed 8 combat bots 7681 | -1/Access | Spotted B-99 Colossus 7689 | -1/Access | Reached level 31 7771 | -1/Access | Spotted B-99 Colossus 7842 | -1/Access | Reached level 32 7915 | -1/Access | First assault squad dispatched 7936 | -1/Access | Destroyed 15 combat bots 7951 | -1/Access | Core integrity fell below 20% 7963 | -1/Access | Destroyed by H-88 Terminator with KE Penetrator Last Messages --------------- 07944_ H-81 Overseer call for reinforcements jammed. 07944_ Knocked back. 07946_ H-81 Overseer call for reinforcements jammed. 07950_ Knocked back. 07951_ H-81 Overseer call for reinforcements jammed. 07951_ Slug penetrates Wall. 07952_ H-81 Overseer destroyed. 07960_ Sneak attack on C-45 Heavy ARC. 07960_ Destroyed Imp. Ion Engine. 07960_ Sneak attack on C-45 Heavy ARC. 07960_ Enh. Force Lance follow-up attack on C-45 Heavy ARC. 07961_ C-45 Heavy ARC bursts open, deploying its payload. 07961_ G-73 Enforcer unfolds itself. 07961_ B-74 Champion unfolds itself. 07961_ G-73 Enforcer unfolds itself. 07961_ I-47 Archangel unfolds itself. 07961_ I-47 Archangel distress signal jammed. 07963_ Slug penetrates Wall. 07963_ Penetrated by Slug. [Achievement: 20k Club] Map ----- +----------------------------------------------------+ | ???????????????????????# """" | | ???????????????????????? """" | | ?????????????????????????# """" | | ?????????????????????????# ### """" | | ?????????????????????????# #?# """" | | ??????????????????????????? #?# """" | | ????????????????????????????? #?# | | ??????????????????????????????? #?# | | ????????????????????????????????? #?# | | ??????????????????????????????????# #?# | | ??????????????????????????????????#+###+## | | ????????w?????????????????????????# # | | ??????????????????????????????????# = ] + "" | | ??????????????????????????????????# # "" | | ??????????????????????????????????# !!= *# " | | ??????????????????????????????????# !== # ####### | | ??????????????????????????????????# !== # #?????? | | ??????????????????????????????????######## ######? | | ?????????????????????????????????????????# +? | | ?????????????????????????????????????????# ######? | | ??????????? ????????????????????????????# #?????? | | ?????????? ?????????????????????????# #?????? | | ?????????? ??????????????????????# #?????# | | ????????? #??????############## ##??? | | ????????? #####b # +??? | | ????????? h h @Al/gg # #?Q | | ????????? ##+######## # #? | | ????????????????????????????#i # Q? | | ????????????????????????????# # # | | ????????????????????????????# R# # | | ????????????????????????????# " + " | | ????????????????????????????# """ # + " | | ????????????????????????????# """ # # " | | ????????????????????????????# " # #? " | | ????????????????????????????# # #? | | ????????????????????????????# # #?? | | ????????????????????????????############## ##"### | | ??????????????????????????????????????# # R "#### | | ???????????????????????????????????????#!!!!% | | ???????????????????????????????????????##]*=! | | ????????????????????????????????????????#!%%%##### | | ????????????????????????????????????????######???? | | ?????????????????????????????????????????????????? | | ?????????????????????????????????????????????????? | | ?????????????????????????????????????????????????? | | ?????????????????????????????????????????????????? | | ?????????????????????????????????????????????????? | | ?????????????????????????????????????????????????? | | ??????????????????????Y??????????????????????????? | | ?????????????????????????????????????????????????? | +----------------------------------------------------+ Best States ------------- Heat Dissipation 87 Energy Generation 93 Energy Capacity 1075 Matter Stores 300 Matter Capacity 300 Sight Range 17 Robot Scan Range 28 Terrain Scan Density 10 Jamming Range 22 Cloak Strength 2 Power Amplification 30 Corruption Block 13 Armor Coverage 150 Melee Speed Boost 40 Phase Shifting 15 Evasion (%) 95 Melee Accuracy 16 Force Boost 40 Offensive Hacking 10 Item Schematics ----------------- Assault Drone Bay | -5/Zhirov | Free Exp. Heat Sink | -5/Zhirov | Free Exp. Optical Array | -5/Zhirov | Free Imp. Arc Thrower | -5/Zhirov | Free Hvy. Hardcell Cannon | -3/Quarantine | Archive Adv. EM Shield | -3/Quarantine | Archive Shock Maul | -3/Quarantine | Archive Exp. Shield Generator | -3/Quarantine | Archive Cld. Antigrav System | -3/Quarantine | Archive Exp. Thermal Defense Suite | -3/Quarantine | Archive Enh. Fission Core | -3/Quarantine | Archive Cld. Antimatter Reactor | -3/Quarantine | Archive Prc. Energy Filter | -3/Quarantine | Archive Robot Schematics ------------------ None Fabricated ------------ Nothing Repaired ---------- Exp. Sensor Array | 62% | -8/Materials Studied --------- Maul | -9/Materials | Hacked Mic. Nuclear Core | -7/Factory | Hacked Cesium-ion Thruster | -7/Factory | Hacked Powered Hammer | -6/Factory | Hacked Hyb. Deuterium Engine | -4/Factory | Hacked Spear | -4/Factory | Hacked Lgt. Particle Reactor | -3/Research | Hacked Alien Tech Used ----------------- Core Expander Integrated Dissipator Transdimensional Reconstructor Achievements -------------- 20k Club A Powerful Ally? Alien Tech Armchair Analyst Assassin Charge!!! Denied? Dramatic Entrance Explorer Hammer Time I Laugh At Your Crits Melee Specialist More Power To You No Signal Ooh, Shiny! Party Time Plot Armor Speed Demon Subspace Traveler Tailor-made The Science Guy Treasure Hunter Challenges ------------ None RPGLIKE | -11 -10 -10 -9 -9 -8 -7 -6 -6 -5 -5 -5 -5 -4 -4 -4 -4 -4 -3 -3 -3 -2 -1 --------- Run | Yrd Mat Min Mat Min Mat Fac Fac Ext Fac Upp Upp Zhi Pro Fac Upp Upp War Pro Res Qua Res Acc Levels Raised 31 | . . . 4 1 1 2 2 2 2 . 1 1 . 2 1 1 1 . 2 2 2 4 XP Earned 50407 | 3000 350 856 5400 1200 2030 2345 2985 3987 2309 600 1400 650 1250 2165 2100 950 1000 1100 2785 2951 2450 6544 XP Spent 46395 | . 850 500 7635 1100 . 4035 2950 2000 3400 750 2100 1000 . 2600 2500 1250 . . 3500 2000 4900 3325 Upgrades 50 | . 3 1 13 1 . 5 6 1 2 1 3 1 . 1 2 1 . . 3 1 2 3 Power Slot 2 | . . . 1 . . . 1 . . . . . . . . . . . . . . . Propulsion Slot 7 | . . . 5 . . . . . . . . . . . . . . . . 1 1 . Utility Slot 9 | . . . 2 1 . 2 . 1 1 . . . . 1 . . . . 1 . . . Weapon Slot 3 | . 1 . . . . 1 1 . . . . . . . . . . . . . . . Core Integrity 1 | . . . . . . 1 . . . . . . . . . . . . . . . . Heat Dissipation 7 | . . . 3 . . 1 3 . . . . . . . . . . . . . . . Mass Support 7 | . 1 . . . . . 1 . 1 . 1 . . . 1 . . . . . 1 1 Inventory Capacity 5 | . 1 1 . . . . . . . 1 . 1 . . . 1 . . . . . . Sight Range 1 | . . . . . . . . . . . . . . . . . . . 1 . . . Sensor Range 4 | . . . 2 . . . . . . . . . . . . . . . . . . 2 Melee Accuracy 4 | . . . . . . . . . . . 2 . . . 1 . . . 1 . . . Protomatter Created 3628 | . 46 10 270 59 . 47 294 442 26 59 243 251 132 . 342 140 . . . 140 69 1058 Integrity Restored 7057 | . 107 114 893 169 . 141 636 780 180 177 623 259 19 . 754 79 118 . . 521 207 1280 Core 5794 | . 107 114 696 85 . 141 455 713 180 177 547 54 15 . 530 64 92 . . 487 207 1130 Parts 1263 | . . . 197 84 . . 181 67 . . 76 205 4 . 224 15 26 . . 34 . 150 Protomatter Decayed 1767 | . . 13 29 . . . 13 326 13 . 12 . 125 . 83 30 277 . . . 217 629 Game ------ Seed MissileSigixMediator Manual? 0 Play Time 03:28:15 Cumulative 49.7 hours Start 2025.11.15 @ 22:12:48 End 2025.11.16 @ 01:48:16 Sessions 1 Manual Loads 0 Difficulty Rogue Special Mode Winter2019/RPGLIKE Game No. 100 Rogue 100 Adventurer 0 Explorer 0 Win Type - Total 0 Types 0/0/0/0/0/0/0/0/0/0 Lore% 21 Gallery% 35 Achievement% 27 Wizard Run 0 Options --------- Layout 0 ASCII 0 Keyboard 0 Movement Mouse Keybinds 0 Fullscreen 2 Font 18/SmallcapsGlow Map View 76x50 Zoom Use 0% Tactical HUD 1 Map Filters NONE Filters NONE Steam 1 RUN: 989f82ec-efc3-4fc7-aad0-22c7f8a145c9